{"text_format":"1","workbook":"xlsx","n_sheets":3,"sheets":["!","@","Options"],"not_rendered":{"charts":0,"images":0,"macros":1,"external_links":0,"defined_names":18,"comments":0,"pivot_tables":0},"unopened":[],"bounds":{"document_bytes":16777216,"sheet_cells":100000,"rows_first":2000,"rows_last":500,"rows_between":2000,"halvings":0,"cell_chars":16384,"cell_head_chars":4096},"cells_cut":0,"cells_raw":0,"read":"whole","date_system":"1900"}

{"sheet":"!","index":0,"n_rows":26,"n_cols":4,"rows_kept":26,"cut":false,"hidden":false,"merged":[[25,3,32,14]]}
[]
[]
[]
[]
[]
[]
[]
[]
[]
[]
[]
[]
[]
[]
[]
[]
[]
[]
[]
[]
[]
[]
[]
[]
[]
[null,null,null,{"$f":"QUESTION","v":""}]

{"sheet":"@","index":1,"n_rows":93,"n_cols":8,"rows_kept":93,"cut":false,"hidden":false,"merged":[[6,1,6,3],[39,1,39,3],[58,1,58,3]]}
[]
[]
[]
[]
[]
[]
[null,"Результаты тестирования"]
[]
[]
[]
[]
[]
[]
[]
[]
[null,"Показатель","Балл","Оценка",null,null,null,"№ п/п"]
[null,"I. Организационная структура, организация управления и дисциплина труда",{"$f":"IFERROR(AVERAGE(C18:C21),\"\")","v":""},{"$f":"IF(ISNUMBER(C17),IF(C17<=20,\"критическое состояние\",IF(C17<=40,\"неудовлетворительно\",IF(C17<=60,\"удовлетворительно\",IF(C17<=80,\"хорошо\",\"отлично\")))),\"\")","v":""}]
[null,"1. Организационная структура",{"$f":"IFERROR(IF(TESTED_COUNT>1,AVERAGE(IF(dbTest[№]=$H18,dbTest[СрВзБалл],\"\")),\"\"),\"\")","v":""},"",null,null,null,1]
[null,"2. Качество трудовой дисциплины",{"$f":"IFERROR(IF(TESTED_COUNT>1,AVERAGE(IF(dbTest[№]=$H19,dbTest[СрВзБалл],\"\")),\"\"),\"\")","v":""},"",null,null,null,2]
[null,"3. Знание и распределение обязанностей",{"$f":"IFERROR(IF(TESTED_COUNT>1,AVERAGE(IF(dbTest[№]=$H20,dbTest[СрВзБалл],\"\")),\"\"),\"\")","v":""},"",null,null,null,3]
[null,"4. Качество управления текущими задачами",{"$f":"IFERROR(AVERAGE(C22:C23),\"\")","v":""},""]
[null,"Планирование",{"$f":"IFERROR(IF(TESTED_COUNT>1,AVERAGE(IF(dbTest[№]=$H22,dbTest[СрВзБалл],\"\")),\"\"),\"\")","v":""},"",null,null,null,4]
[null,"Контроль",{"$f":"IFERROR(IF(TESTED_COUNT>1,AVERAGE(IF(dbTest[№]=$H23,dbTest[СрВзБалл],\"\")),\"\"),\"\")","v":""},"",null,null,null,5]
[null,"II. Мотивация труда и психологическое состояние работника",{"$f":"IFERROR(AVERAGE(C25,C32,C37),\"\")","v":""},""]
[null,"1. Гигиенические факторы",{"$f":"IFERROR(AVERAGE(C26:C31),\"\")","v":""},""]
[null,"Физические условия труда",{"$f":"IFERROR(IF(TESTED_COUNT>1,AVERAGE(IF(dbTest[№]=$H26,dbTest[СрВзБалл],\"\")),\"\"),\"\")","v":""},"",null,null,null,6]
[null,"Обустройство рабочего места",{"$f":"IFERROR(IF(TESTED_COUNT>1,AVERAGE(IF(dbTest[№]=$H27,dbTest[СрВзБалл],\"\")),\"\"),\"\")","v":""},"",null,null,null,7]
[null,"Заработная плата",{"$f":"IFERROR(IF(TESTED_COUNT>1,AVERAGE(IF(dbTest[№]=$H28,dbTest[СрВзБалл],\"\")),\"\"),\"\")","v":""},"",null,null,null,8]
[null,"Ожидание справедливого вознаграждения",{"$f":"IFERROR(IF(TESTED_COUNT>1,AVERAGE(IF(dbTest[№]=$H29,dbTest[СрВзБалл],\"\")),\"\"),\"\")","v":""},"",null,null,null,9]
[null,"Взаимоотношения в коллективе",{"$f":"IFERROR(IF(TESTED_COUNT>1,AVERAGE(IF(dbTest[№]=$H30,dbTest[СрВзБалл],\"\")),\"\"),\"\")","v":""},"",null,null,null,10]
[null,"Взаимоотношения с непосредственным начальником",{"$f":"IFERROR(IF(TESTED_COUNT>1,AVERAGE(IF(dbTest[№]=$H31,dbTest[СрВзБалл],\"\")),\"\"),\"\")","v":""},"",null,null,null,11]
[null,"2. Стимулирующие факторы",{"$f":"IFERROR(AVERAGE(C33:C37),\"\")","v":""},""]
[null,"Поощрение начальником инициативы и самостоятельности подчиненных",{"$f":"IFERROR(IF(TESTED_COUNT>1,AVERAGE(IF(dbTest[№]=$H33,dbTest[СрВзБалл],\"\")),\"\"),\"\")","v":""},"",null,null,null,12]
[null,"Соответствие «человек - должность», интерес к работе",{"$f":"IFERROR(IF(TESTED_COUNT>1,AVERAGE(IF(dbTest[№]=$H34,dbTest[СрВзБалл],\"\")),\"\"),\"\")","v":""},"",null,null,null,13]
[null,"Возможность самореализации и продвижения по службе",{"$f":"IFERROR(IF(TESTED_COUNT>1,AVERAGE(IF(dbTest[№]=$H35,dbTest[СрВзБалл],\"\")),\"\"),\"\")","v":""},"",null,null,null,14]
[null,"Участие в управлении",{"$f":"IFERROR(IF(TESTED_COUNT>1,AVERAGE(IF(dbTest[№]=$H36,dbTest[СрВзБалл],\"\")),\"\"),\"\")","v":""},"",null,null,null,15]
[null,"3. Психологическое состояние работника",{"$f":"IFERROR(IF(TESTED_COUNT>1,AVERAGE(IF(dbTest[№]=$H37,dbTest[СрВзБалл],\"\")),\"\"),\"\")","v":""},"",null,null,null,16]
[]
[null,"Вопрос","Балл","Оценка"]
[null,"I. Организационная структура, качество управления и дисциплина труда"]
[null,{"$f":"IF(TESTED_COUNT>1,Options!B13 & \". \" & Options!E13,\"\")","v":""},{"$f":"IF(TESTED_COUNT>1,Options!T13,\"\")","v":""},{"$f":"IF(ISNUMBER(C41),IF(C41<=20,\"критическое состояние\",IF(C41<=40,\"неудовлетворительно\",IF(C41<=60,\"удовлетворительно\",IF(C41<=80,\"хорошо\",\"отлично\")))),\"\")","v":""}]
[null,{"$f":"IF(TESTED_COUNT>1,Options!B14 & \". \" & Options!E14,\"\")","v":""},{"$f":"IF(TESTED_COUNT>1,Options!T14,\"\")","v":""},{"$f":"IF(ISNUMBER(C42),IF(C42<=20,\"критическое состояние\",IF(C42<=40,\"неудовлетворительно\",IF(C42<=60,\"удовлетворительно\",IF(C42<=80,\"хорошо\",\"отлично\")))),\"\")","v":""}]
[null,{"$f":"IF(TESTED_COUNT>1,Options!B15 & \". \" & Options!E15,\"\")","v":""},{"$f":"IF(TESTED_COUNT>1,Options!T15,\"\")","v":""},""]
[null,{"$f":"IF(TESTED_COUNT>1,Options!B16 & \". \" & Options!E16,\"\")","v":""},{"$f":"IF(TESTED_COUNT>1,Options!T16,\"\")","v":""},""]
[null,{"$f":"IF(TESTED_COUNT>1,Options!B17 & \". \" & Options!E17,\"\")","v":""},{"$f":"IF(TESTED_COUNT>1,Options!T17,\"\")","v":""},""]
[null,{"$f":"IF(TESTED_COUNT>1,Options!B18 & \". \" & Options!E18,\"\")","v":""},{"$f":"IF(TESTED_COUNT>1,Options!T18,\"\")","v":""},""]
[null,{"$f":"IF(TESTED_COUNT>1,Options!B19 & \". \" & Options!E19,\"\")","v":""},{"$f":"IF(TESTED_COUNT>1,Options!T19,\"\")","v":""},""]
[null,{"$f":"IF(TESTED_COUNT>1,Options!B20 & \". \" & Options!E20,\"\")","v":""},{"$f":"IF(TESTED_COUNT>1,Options!T20,\"\")","v":""},""]
[null,{"$f":"IF(TESTED_COUNT>1,Options!B21 & \". \" & Options!E21,\"\")","v":""},{"$f":"IF(TESTED_COUNT>1,Options!T21,\"\")","v":""},""]
[null,{"$f":"IF(TESTED_COUNT>1,Options!B22 & \". \" & Options!E22,\"\")","v":""},{"$f":"IF(TESTED_COUNT>1,Options!T22,\"\")","v":""},""]
[null,{"$f":"IF(TESTED_COUNT>1,Options!B23 & \". \" & Options!E23,\"\")","v":""},{"$f":"IF(TESTED_COUNT>1,Options!T23,\"\")","v":""},""]
[null,{"$f":"IF(TESTED_COUNT>1,Options!B24 & \". \" & Options!E24,\"\")","v":""},{"$f":"IF(TESTED_COUNT>1,Options!T24,\"\")","v":""},""]
[null,{"$f":"IF(TESTED_COUNT>1,Options!B25 & \". \" & Options!E25,\"\")","v":""},{"$f":"IF(TESTED_COUNT>1,Options!T25,\"\")","v":""},""]
[null,{"$f":"IF(TESTED_COUNT>1,Options!B26 & \". \" & Options!E26,\"\")","v":""},{"$f":"IF(TESTED_COUNT>1,Options!T26,\"\")","v":""},""]
[null,{"$f":"IF(TESTED_COUNT>1,Options!B27 & \". \" & Options!E27,\"\")","v":""},{"$f":"IF(TESTED_COUNT>1,Options!T27,\"\")","v":""},""]
[null,{"$f":"IF(TESTED_COUNT>1,Options!B28 & \". \" & Options!E28,\"\")","v":""},{"$f":"IF(TESTED_COUNT>1,Options!T28,\"\")","v":""},""]
[null,{"$f":"IF(TESTED_COUNT>1,Options!B29 & \". \" & Options!E29,\"\")","v":""},{"$f":"IF(TESTED_COUNT>1,Options!T29,\"\")","v":""},""]
[null,{"$f":"IF(TESTED_COUNT>1,Options!B30 & \". \" & Options!E30,\"\")","v":""},{"$f":"IF(TESTED_COUNT>1,Options!T30,\"\")","v":""},""]
[null,"II. Мотивация труда и психологическое состояние работника"]
[null,{"$f":"IF(TESTED_COUNT>1,Options!B31 & \". \" & Options!E31,\"\")","v":""},{"$f":"IF(TESTED_COUNT>1,Options!T31,\"\")","v":""},{"$f":"IF(ISNUMBER(C60),IF(C60<=20,\"критическое состояние\",IF(C60<=40,\"неудовлетворительно\",IF(C60<=60,\"удовлетворительно\",IF(C60<=80,\"хорошо\",\"отлично\")))),\"\")","v":""}]
[null,{"$f":"IF(TESTED_COUNT>1,Options!B32 & \". \" & Options!E32,\"\")","v":""},{"$f":"IF(TESTED_COUNT>1,Options!T32,\"\")","v":""},{"$f":"IF(ISNUMBER(C61),IF(C61<=20,\"критическое состояние\",IF(C61<=40,\"неудовлетворительно\",IF(C61<=60,\"удовлетворительно\",IF(C61<=80,\"хорошо\",\"отлично\")))),\"\")","v":""}]
[null,{"$f":"IF(TESTED_COUNT>1,Options!B33 & \". \" & Options!E33,\"\")","v":""},{"$f":"IF(TESTED_COUNT>1,Options!T33,\"\")","v":""},""]
[null,{"$f":"IF(TESTED_COUNT>1,Options!B34 & \". \" & Options!E34,\"\")","v":""},{"$f":"IF(TESTED_COUNT>1,Options!T34,\"\")","v":""},""]
[null,{"$f":"IF(TESTED_COUNT>1,Options!B35 & \". \" & Options!E35,\"\")","v":""},{"$f":"IF(TESTED_COUNT>1,Options!T35,\"\")","v":""},""]
[null,{"$f":"IF(TESTED_COUNT>1,Options!B36 & \". \" & Options!E36,\"\")","v":""},{"$f":"IF(TESTED_COUNT>1,Options!T36,\"\")","v":""},""]
[null,{"$f":"IF(TESTED_COUNT>1,Options!B37 & \". \" & Options!E37,\"\")","v":""},{"$f":"IF(TESTED_COUNT>1,Options!T37,\"\")","v":""},""]
[null,{"$f":"IF(TESTED_COUNT>1,Options!B38 & \". \" & Options!E38,\"\")","v":""},{"$f":"IF(TESTED_COUNT>1,Options!T38,\"\")","v":""},""]
[null,{"$f":"IF(TESTED_COUNT>1,Options!B39 & \". \" & Options!E39,\"\")","v":""},{"$f":"IF(TESTED_COUNT>1,Options!T39,\"\")","v":""},""]
[null,{"$f":"IF(TESTED_COUNT>1,Options!B40 & \". \" & Options!E40,\"\")","v":""},{"$f":"IF(TESTED_COUNT>1,Options!T40,\"\")","v":""},""]
[null,{"$f":"IF(TESTED_COUNT>1,Options!B41 & \". \" & Options!E41,\"\")","v":""},{"$f":"IF(TESTED_COUNT>1,Options!T41,\"\")","v":""},""]
[null,{"$f":"IF(TESTED_COUNT>1,Options!B42 & \". \" & Options!E42,\"\")","v":""},{"$f":"IF(TESTED_COUNT>1,Options!T42,\"\")","v":""},""]
[null,{"$f":"IF(TESTED_COUNT>1,Options!B43 & \". \" & Options!E43,\"\")","v":""},{"$f":"IF(TESTED_COUNT>1,Options!T43,\"\")","v":""},""]
[null,{"$f":"IF(TESTED_COUNT>1,Options!B44 & \". \" & Options!E44,\"\")","v":""},{"$f":"IF(TESTED_COUNT>1,Options!T44,\"\")","v":""},""]
[null,{"$f":"IF(TESTED_COUNT>1,Options!B45 & \". \" & Options!E45,\"\")","v":""},{"$f":"IF(TESTED_COUNT>1,Options!T45,\"\")","v":""},""]
[null,{"$f":"IF(TESTED_COUNT>1,Options!B46 & \". \" & Options!E46,\"\")","v":""},{"$f":"IF(TESTED_COUNT>1,Options!T46,\"\")","v":""},""]
[null,{"$f":"IF(TESTED_COUNT>1,Options!B47 & \". \" & Options!E47,\"\")","v":""},{"$f":"IF(TESTED_COUNT>1,Options!T47,\"\")","v":""},""]
[null,{"$f":"IF(TESTED_COUNT>1,Options!B48 & \". \" & Options!E48,\"\")","v":""},{"$f":"IF(TESTED_COUNT>1,Options!T48,\"\")","v":""},""]
[null,{"$f":"IF(TESTED_COUNT>1,Options!B49 & \". \" & Options!E49,\"\")","v":""},{"$f":"IF(TESTED_COUNT>1,Options!T49,\"\")","v":""},""]
[null,{"$f":"IF(TESTED_COUNT>1,Options!B50 & \". \" & Options!E50,\"\")","v":""},{"$f":"IF(TESTED_COUNT>1,Options!T50,\"\")","v":""},""]
[null,{"$f":"IF(TESTED_COUNT>1,Options!B51 & \". \" & Options!E51,\"\")","v":""},{"$f":"IF(TESTED_COUNT>1,Options!T51,\"\")","v":""},""]
[null,{"$f":"IF(TESTED_COUNT>1,Options!B52 & \". \" & Options!E52,\"\")","v":""},{"$f":"IF(TESTED_COUNT>1,Options!T52,\"\")","v":""},""]
[null,{"$f":"IF(TESTED_COUNT>1,Options!B53 & \". \" & Options!E53,\"\")","v":""},{"$f":"IF(TESTED_COUNT>1,Options!T53,\"\")","v":""},""]
[null,{"$f":"IF(TESTED_COUNT>1,Options!B54 & \". \" & Options!E54,\"\")","v":""},{"$f":"IF(TESTED_COUNT>1,Options!T54,\"\")","v":""},""]
[null,{"$f":"IF(TESTED_COUNT>1,Options!B55 & \". \" & Options!E55,\"\")","v":""},{"$f":"IF(TESTED_COUNT>1,Options!T55,\"\")","v":""},""]
[null,{"$f":"IF(TESTED_COUNT>1,Options!B56 & \". \" & Options!E56,\"\")","v":""},{"$f":"IF(TESTED_COUNT>1,Options!T56,\"\")","v":""},""]
[null,{"$f":"IF(TESTED_COUNT>1,Options!B57 & \". \" & Options!E57,\"\")","v":""},{"$f":"IF(TESTED_COUNT>1,Options!T57,\"\")","v":""},""]
[null,{"$f":"IF(TESTED_COUNT>1,Options!B58 & \". \" & Options!E58,\"\")","v":""},{"$f":"IF(TESTED_COUNT>1,Options!T58,\"\")","v":""},""]
[null,{"$f":"IF(TESTED_COUNT>1,Options!B59 & \". \" & Options!E59,\"\")","v":""},{"$f":"IF(TESTED_COUNT>1,Options!T59,\"\")","v":""},""]
[null,{"$f":"IF(TESTED_COUNT>1,Options!B60 & \". \" & Options!E60,\"\")","v":""},{"$f":"IF(TESTED_COUNT>1,Options!T60,\"\")","v":""},""]
[null,{"$f":"IF(TESTED_COUNT>1,Options!B61 & \". \" & Options!E61,\"\")","v":""},{"$f":"IF(TESTED_COUNT>1,Options!T61,\"\")","v":""},""]
[null,{"$f":"IF(TESTED_COUNT>1,Options!B62 & \". \" & Options!E62,\"\")","v":""},{"$f":"IF(TESTED_COUNT>1,Options!T62,\"\")","v":""},""]
[null,{"$f":"IF(TESTED_COUNT>1,Options!B63 & \". \" & Options!E63,\"\")","v":""},{"$f":"IF(TESTED_COUNT>1,Options!T63,\"\")","v":""},""]
[null,{"$f":"IF(TESTED_COUNT>1,Options!B64 & \". \" & Options!E64,\"\")","v":""},{"$f":"IF(TESTED_COUNT>1,Options!T64,\"\")","v":""},""]

{"sheet":"Options","index":2,"n_rows":64,"n_cols":40,"rows_kept":64,"cut":false,"hidden":true,"merged":[]}
[]
[null,"Макс. кол. тестирований",{"$f":"COUNT(TESTED)","v":20}]
[null,"Кол. вопросов",{"$f":"COUNT(dbTest[№_п.п])","v":52}]
[null,"№ поиск",{"$f":"IFERROR(MATCH(0,TESTED,0),0)","v":1},"Вопрос",{"$f":"IF(ROW_NUM=0,\"\",INDEX(dbTest[Вопрос],ROW_NUM,1))","v":""}]
[null,"Тестируемый №",null,"Ответ 1",{"$f":"IF(ROW_NUM=0,\"\",INDEX(dbTest[Ответ1],ROW_NUM,1))","v":""}]
[null,"Вопрос №",null,"Ответ 2",{"$f":"IF(ROW_NUM=0,\"\",INDEX(dbTest[Ответ2],ROW_NUM,1))","v":""}]
[null,"Строка №",{"$f":"IFERROR(MATCH(QUESTION_NUM,dbTest[№ вопроса],0),0)","v":0},"Ответ 3",{"$f":"IF(ROW_NUM=0,\"\",INDEX(dbTest[Ответ3],ROW_NUM,1))","v":""}]
[null,"Кол.тестирований",{"$f":"COUNTIF(TESTED,QUESTIONS_COUNT)","v":0},"Ответ 4",{"$f":"IF(ROW_NUM=0,\"\",INDEX(dbTest[Ответ4],ROW_NUM,1))","v":""}]
[null,"Удалить №",0,{"$f":"IF(NUM_DELETE=0,\"-\",IF(NUM_DELETE=21,\"Все\",\"№ \" &NUM_DELETE))","v":"-"}]
[]
[null,null,null,null,null,null,null,null,null,null,null,null,null,null,null,null,null,null,null,null,{"$f":"COUNT(dbTest[1])","v":0},{"$f":"COUNT(dbTest[2])","v":0},{"$f":"COUNT(dbTest[3])","v":0},{"$f":"COUNT(dbTest[4])","v":0},{"$f":"COUNT(dbTest[5])","v":0},{"$f":"COUNT(dbTest[6])","v":0},{"$f":"COUNT(dbTest[7])","v":0},{"$f":"COUNT(dbTest[8])","v":0},{"$f":"COUNT(dbTest[9])","v":0},{"$f":"COUNT(dbTest[10])","v":0},{"$f":"COUNT(dbTest[11])","v":0},{"$f":"COUNT(dbTest[12])","v":0},{"$f":"COUNT(dbTest[13])","v":0},{"$f":"COUNT(dbTest[14])","v":0},{"$f":"COUNT(dbTest[15])","v":0},{"$f":"COUNT(dbTest[16])","v":0},{"$f":"COUNT(dbTest[17])","v":0},{"$f":"COUNT(dbTest[18])","v":0},{"$f":"COUNT(dbTest[19])","v":0},{"$f":"COUNT(dbTest[20])","v":0}]
[null,"№_п.п","№ вопроса","№","Вопрос","Раздел  I","Раздел II","Подраздел","Ответ1","Ответ2","Ответ3","Ответ4","Балл1","Балл2","Балл3","Балл4","МинБалл","СрБалл","МаксБалл","СрВзБалл","1","2","3","4","5","6","7","8","9","10","11","12","13","14","15","16","17","18","19","20"]
[null,1,11,1,"В нашей организации существуют различные «барьеры» организационного характера (неэффективные взаимосвязи между подразделениями, неправильное распределение прав и обязанностей между работниками и пр.), которые часто мешают мне качественно выполнять свои должностные обязанности.","I. Организационная структура, качество управления и дисциплина труда","1. Организационная структура","-","Да, безусловно","Скорее да, чем нет","Скорее нет, чем да","Нет",0,25,75,100,{"$f":"MIN(dbTest[[#This Row],[1]:[20]])","v":0},{"$f":"IFERROR(IF(COUNT(dbTest[[#This Row],[1]:[20]])>1,AVERAGE(dbTest[[#This Row],[1]:[20]]),\"\"),\"\")","v":""},{"$f":"MAX(dbTest[[#This Row],[1]:[20]])","v":0},{"$f":"IFERROR(IF(dbTest[[#This Row],[СрБалл]]=\"\",\"\",0.25*(dbTest[[#This Row],[МинБалл]]+dbTest[[#This Row],[МаксБалл]])+0.5*dbTest[[#This Row],[СрБалл]]),\"\")","v":""}]
[null,2,40,1,"Инструкции, приказы и распоряжения руководства нашей организации противоречивы и в целом неадекватно отражают сложившуюся ситуацию.","I. Организационная структура, качество управления и дисциплина труда","1. Организационная структура","-","Да","Скорее да, чем нет","Скорее нет, чем да","Нет",0,25,75,100,{"$f":"MIN(dbTest[[#This Row],[1]:[20]])","v":0},{"$f":"IFERROR(IF(COUNT(dbTest[[#This Row],[1]:[20]])>1,AVERAGE(dbTest[[#This Row],[1]:[20]]),\"\"),\"\")","v":""},{"$f":"MAX(dbTest[[#This Row],[1]:[20]])","v":0},{"$f":"IFERROR(IF(dbTest[[#This Row],[СрБалл]]=\"\",\"\",0.25*(dbTest[[#This Row],[МинБалл]]+dbTest[[#This Row],[МаксБалл]])+0.5*dbTest[[#This Row],[СрБалл]]),\"\")","v":""}]
[null,3,6,2,"В целом, в нашей организации поддерживается высокий уровень трудовой дисциплины.","I. Организационная структура, качество управления и дисциплина труда","2. Качество трудовой дисциплины","-","Да, безусловно","Скорее да, чем нет","Скорее нет, чем да","Нет",100,75,25,0,{"$f":"MIN(dbTest[[#This Row],[1]:[20]])","v":0},{"$f":"IFERROR(IF(COUNT(dbTest[[#This Row],[1]:[20]])>1,AVERAGE(dbTest[[#This Row],[1]:[20]]),\"\"),\"\")","v":""},{"$f":"MAX(dbTest[[#This Row],[1]:[20]])","v":0},{"$f":"IFERROR(IF(dbTest[[#This Row],[СрБалл]]=\"\",\"\",0.25*(dbTest[[#This Row],[МинБалл]]+dbTest[[#This Row],[МаксБалл]])+0.5*dbTest[[#This Row],[СрБалл]]),\"\")","v":""}]
[null,4,5,2,"Возникают ситуации, когда мои коллеги не выполняют поставленные перед ними задачи качественно и в установленные сроки.","I. Организационная структура, качество управления и дисциплина труда","2. Качество трудовой дисциплины","-","Да, очень часто","Часто","Иногда","Практически никогда",0,25,75,100,{"$f":"MIN(dbTest[[#This Row],[1]:[20]])","v":0},{"$f":"IFERROR(IF(COUNT(dbTest[[#This Row],[1]:[20]])>1,AVERAGE(dbTest[[#This Row],[1]:[20]]),\"\"),\"\")","v":""},{"$f":"MAX(dbTest[[#This Row],[1]:[20]])","v":0},{"$f":"IFERROR(IF(dbTest[[#This Row],[СрБалл]]=\"\",\"\",0.25*(dbTest[[#This Row],[МинБалл]]+dbTest[[#This Row],[МаксБалл]])+0.5*dbTest[[#This Row],[СрБалл]]),\"\")","v":""}]
[null,5,1,3,"Я хорошо знаю права и обязанности, связанные с моей должностью.","I. Организационная структура, качество управления и дисциплина труда","3. Знание и распределение обязанностей","-","Да, безусловно","Скорее да, чем нет","Скорее нет, чем да","Нет",100,75,25,0,{"$f":"MIN(dbTest[[#This Row],[1]:[20]])","v":0},{"$f":"IFERROR(IF(COUNT(dbTest[[#This Row],[1]:[20]])>1,AVERAGE(dbTest[[#This Row],[1]:[20]]),\"\"),\"\")","v":""},{"$f":"MAX(dbTest[[#This Row],[1]:[20]])","v":0},{"$f":"IFERROR(IF(dbTest[[#This Row],[СрБалл]]=\"\",\"\",0.25*(dbTest[[#This Row],[МинБалл]]+dbTest[[#This Row],[МаксБалл]])+0.5*dbTest[[#This Row],[СрБалл]]),\"\")","v":""}]
[null,6,31,3,"Я считаю, что некоторые обязанности, возложенные на меня не очень совместимы с моей должностью.","I. Организационная структура, качество управления и дисциплина труда","3. Знание и распределение обязанностей","-","Да, безусловно","Скорее да, чем нет","Скорее нет, чем да","Нет",0,25,75,100,{"$f":"MIN(dbTest[[#This Row],[1]:[20]])","v":0},{"$f":"IFERROR(IF(COUNT(dbTest[[#This Row],[1]:[20]])>1,AVERAGE(dbTest[[#This Row],[1]:[20]]),\"\"),\"\")","v":""},{"$f":"MAX(dbTest[[#This Row],[1]:[20]])","v":0},{"$f":"IFERROR(IF(dbTest[[#This Row],[СрБалл]]=\"\",\"\",0.25*(dbTest[[#This Row],[МинБалл]]+dbTest[[#This Row],[МаксБалл]])+0.5*dbTest[[#This Row],[СрБалл]]),\"\")","v":""}]
[null,7,45,3,"Часть функций, которые как мне кажется, должен (должна) выполнять я, почему-то выполняют другие.","I. Организационная структура, качество управления и дисциплина труда","3. Знание и распределение обязанностей","-","Да, безусловно","Скорее да, чем нет","Скорее нет, чем да","Нет",0,25,75,100,{"$f":"MIN(dbTest[[#This Row],[1]:[20]])","v":0},{"$f":"IFERROR(IF(COUNT(dbTest[[#This Row],[1]:[20]])>1,AVERAGE(dbTest[[#This Row],[1]:[20]]),\"\"),\"\")","v":""},{"$f":"MAX(dbTest[[#This Row],[1]:[20]])","v":0},{"$f":"IFERROR(IF(dbTest[[#This Row],[СрБалл]]=\"\",\"\",0.25*(dbTest[[#This Row],[МинБалл]]+dbTest[[#This Row],[МаксБалл]])+0.5*dbTest[[#This Row],[СрБалл]]),\"\")","v":""}]
[null,8,30,4,"Бывает, что я не очень хорошо понимаю, зачем необходимо выполнять то или иное задание, и какие цели при этом преследуются.","I. Организационная структура, качество управления и дисциплина труда","4. Качество управления текущими задачами","Планирование","Да, очень часто","Часто","Иногда","Никогда",0,25,75,100,{"$f":"MIN(dbTest[[#This Row],[1]:[20]])","v":0},{"$f":"IFERROR(IF(COUNT(dbTest[[#This Row],[1]:[20]])>1,AVERAGE(dbTest[[#This Row],[1]:[20]]),\"\"),\"\")","v":""},{"$f":"MAX(dbTest[[#This Row],[1]:[20]])","v":0},{"$f":"IFERROR(IF(dbTest[[#This Row],[СрБалл]]=\"\",\"\",0.25*(dbTest[[#This Row],[МинБалл]]+dbTest[[#This Row],[МаксБалл]])+0.5*dbTest[[#This Row],[СрБалл]]),\"\")","v":""}]
[null,9,50,4,"Случается так, что мне просто непонятны способы решения тех задач, которые передо мной ставятся.","I. Организационная структура, качество управления и дисциплина труда","4. Качество управления текущими задачами","Планирование","Да, очень часто","Часто","Иногда","Никогда",0,25,75,100,{"$f":"MIN(dbTest[[#This Row],[1]:[20]])","v":0},{"$f":"IFERROR(IF(COUNT(dbTest[[#This Row],[1]:[20]])>1,AVERAGE(dbTest[[#This Row],[1]:[20]]),\"\"),\"\")","v":""},{"$f":"MAX(dbTest[[#This Row],[1]:[20]])","v":0},{"$f":"IFERROR(IF(dbTest[[#This Row],[СрБалл]]=\"\",\"\",0.25*(dbTest[[#This Row],[МинБалл]]+dbTest[[#This Row],[МаксБалл]])+0.5*dbTest[[#This Row],[СрБалл]]),\"\")","v":""}]
[null,10,43,4,"Возникают ситуации, когда я не имею необходимых средств (финансовых, материальных, времени, информации), чтобы выполнить поставленную передо мной задачу.","I. Организационная структура, качество управления и дисциплина труда","4. Качество управления текущими задачами","Планирование","Да, очень часто","Часто","Иногда","Никогда",0,25,75,100,{"$f":"MIN(dbTest[[#This Row],[1]:[20]])","v":0},{"$f":"IFERROR(IF(COUNT(dbTest[[#This Row],[1]:[20]])>1,AVERAGE(dbTest[[#This Row],[1]:[20]]),\"\"),\"\")","v":""},{"$f":"MAX(dbTest[[#This Row],[1]:[20]])","v":0},{"$f":"IFERROR(IF(dbTest[[#This Row],[СрБалл]]=\"\",\"\",0.25*(dbTest[[#This Row],[МинБалл]]+dbTest[[#This Row],[МаксБалл]])+0.5*dbTest[[#This Row],[СрБалл]]),\"\")","v":""}]
[null,11,26,4,"Случается, я чувствую, что для решения поставленной передо мной задачи мне крайне не хватает нужной информации.","I. Организационная структура, качество управления и дисциплина труда","4. Качество управления текущими задачами","Планирование","Да, очень часто","Часто","Иногда","Никогда",0,25,75,100,{"$f":"MIN(dbTest[[#This Row],[1]:[20]])","v":0},{"$f":"IFERROR(IF(COUNT(dbTest[[#This Row],[1]:[20]])>1,AVERAGE(dbTest[[#This Row],[1]:[20]]),\"\"),\"\")","v":""},{"$f":"MAX(dbTest[[#This Row],[1]:[20]])","v":0},{"$f":"IFERROR(IF(dbTest[[#This Row],[СрБалл]]=\"\",\"\",0.25*(dbTest[[#This Row],[МинБалл]]+dbTest[[#This Row],[МаксБалл]])+0.5*dbTest[[#This Row],[СрБалл]]),\"\")","v":""}]
[null,12,16,4,"Приступая к выполнению порученной мне работы, я всегда точно знаю, в какие сроки она должна быть завершена.","I. Организационная структура, качество управления и дисциплина труда","4. Качество управления текущими задачами","Планирование","Да, всегда","Не всегда","Очень редко","Никогда",100,75,25,0,{"$f":"MIN(dbTest[[#This Row],[1]:[20]])","v":0},{"$f":"IFERROR(IF(COUNT(dbTest[[#This Row],[1]:[20]])>1,AVERAGE(dbTest[[#This Row],[1]:[20]]),\"\"),\"\")","v":""},{"$f":"MAX(dbTest[[#This Row],[1]:[20]])","v":0},{"$f":"IFERROR(IF(dbTest[[#This Row],[СрБалл]]=\"\",\"\",0.25*(dbTest[[#This Row],[МинБалл]]+dbTest[[#This Row],[МаксБалл]])+0.5*dbTest[[#This Row],[СрБалл]]),\"\")","v":""}]
[null,13,21,4,"Я всегда знаю, к кому можно обратиться за помощью в случае, если мне сложно справиться с поставленной задачей.","I. Организационная структура, качество управления и дисциплина труда","4. Качество управления текущими задачами","Планирование","Да, безусловно","Скорее да, чем нет","Скорее нет, чем да","Нет",100,75,25,0,{"$f":"MIN(dbTest[[#This Row],[1]:[20]])","v":0},{"$f":"IFERROR(IF(COUNT(dbTest[[#This Row],[1]:[20]])>1,AVERAGE(dbTest[[#This Row],[1]:[20]]),\"\"),\"\")","v":""},{"$f":"MAX(dbTest[[#This Row],[1]:[20]])","v":0},{"$f":"IFERROR(IF(dbTest[[#This Row],[СрБалл]]=\"\",\"\",0.25*(dbTest[[#This Row],[МинБалл]]+dbTest[[#This Row],[МаксБалл]])+0.5*dbTest[[#This Row],[СрБалл]]),\"\")","v":""}]
[null,14,3,4,"Случается, я чувствую, что мне не хватает знаний, чтобы выполнить поставленную передо мной задачу.","I. Организационная структура, качество управления и дисциплина труда","4. Качество управления текущими задачами","Планирование","Да, очень часто","Часто","Иногда","Никогда",0,25,75,100,{"$f":"MIN(dbTest[[#This Row],[1]:[20]])","v":0},{"$f":"IFERROR(IF(COUNT(dbTest[[#This Row],[1]:[20]])>1,AVERAGE(dbTest[[#This Row],[1]:[20]]),\"\"),\"\")","v":""},{"$f":"MAX(dbTest[[#This Row],[1]:[20]])","v":0},{"$f":"IFERROR(IF(dbTest[[#This Row],[СрБалл]]=\"\",\"\",0.25*(dbTest[[#This Row],[МинБалл]]+dbTest[[#This Row],[МаксБалл]])+0.5*dbTest[[#This Row],[СрБалл]]),\"\")","v":""}]
[null,15,4,5,"Мой начальник контролирует выполнение поставленной передо мной задачи.","I. Организационная структура, качество управления и дисциплина труда","4. Качество управления текущими задачами","Контроль","Всегда","Часто","Иногда","Практически никогда",100,75,25,0,{"$f":"MIN(dbTest[[#This Row],[1]:[20]])","v":0},{"$f":"IFERROR(IF(COUNT(dbTest[[#This Row],[1]:[20]])>1,AVERAGE(dbTest[[#This Row],[1]:[20]]),\"\"),\"\")","v":""},{"$f":"MAX(dbTest[[#This Row],[1]:[20]])","v":0},{"$f":"IFERROR(IF(dbTest[[#This Row],[СрБалл]]=\"\",\"\",0.25*(dbTest[[#This Row],[МинБалл]]+dbTest[[#This Row],[МаксБалл]])+0.5*dbTest[[#This Row],[СрБалл]]),\"\")","v":""}]
[null,16,17,5,"Мой начальник своевременно сообщает мне обо всех замеченных им недостатках в процессе выполнения поставленной передо мной задачи.","I. Организационная структура, качество управления и дисциплина труда","4. Качество управления текущими задачами","Контроль","Всегда","Часто","Иногда","Практически никогда",100,75,25,0,{"$f":"MIN(dbTest[[#This Row],[1]:[20]])","v":0},{"$f":"IFERROR(IF(COUNT(dbTest[[#This Row],[1]:[20]])>1,AVERAGE(dbTest[[#This Row],[1]:[20]]),\"\"),\"\")","v":""},{"$f":"MAX(dbTest[[#This Row],[1]:[20]])","v":0},{"$f":"IFERROR(IF(dbTest[[#This Row],[СрБалл]]=\"\",\"\",0.25*(dbTest[[#This Row],[МинБалл]]+dbTest[[#This Row],[МаксБалл]])+0.5*dbTest[[#This Row],[СрБалл]]),\"\")","v":""}]
[null,17,19,5,"Контролируя мою работу, начальник не только указывает на допущенные мной ошибки, но и всегда замечает положительные результаты.","I. Организационная структура, качество управления и дисциплина труда","4. Качество управления текущими задачами","Контроль","Да","Скорее да, чем нет","Скорее нет, чем да","Нет",100,75,25,0,{"$f":"MIN(dbTest[[#This Row],[1]:[20]])","v":0},{"$f":"IFERROR(IF(COUNT(dbTest[[#This Row],[1]:[20]])>1,AVERAGE(dbTest[[#This Row],[1]:[20]]),\"\"),\"\")","v":""},{"$f":"MAX(dbTest[[#This Row],[1]:[20]])","v":0},{"$f":"IFERROR(IF(dbTest[[#This Row],[СрБалл]]=\"\",\"\",0.25*(dbTest[[#This Row],[МинБалл]]+dbTest[[#This Row],[МаксБалл]])+0.5*dbTest[[#This Row],[СрБалл]]),\"\")","v":""}]
[null,18,33,5,"Мне хотелось бы, чтобы мой начальник всегда сообщал мне о том, как он оценивает качество выполненной или выполняемой мною работы.","I. Организационная структура, качество управления и дисциплина труда","4. Качество управления текущими задачами","Контроль","Да","Скорее да, чем нет","Скорее нет, чем да","Нет",100,75,25,0,{"$f":"MIN(dbTest[[#This Row],[1]:[20]])","v":0},{"$f":"IFERROR(IF(COUNT(dbTest[[#This Row],[1]:[20]])>1,AVERAGE(dbTest[[#This Row],[1]:[20]]),\"\"),\"\")","v":""},{"$f":"MAX(dbTest[[#This Row],[1]:[20]])","v":0},{"$f":"IFERROR(IF(dbTest[[#This Row],[СрБалл]]=\"\",\"\",0.25*(dbTest[[#This Row],[МинБалл]]+dbTest[[#This Row],[МаксБалл]])+0.5*dbTest[[#This Row],[СрБалл]]),\"\")","v":""}]
[null,19,15,6,"В целом я удовлетворен(а) физическими условиями труда (жара, шум, освещенность и прочее) на моем рабочем месте.","II. Мотивация труда и психологическое состояние работника","1. Гигиенические факторы","Физические условия труда","Да","Скорее да, чем нет","Скорее нет, чем да","Нет",100,75,25,0,{"$f":"MIN(dbTest[[#This Row],[1]:[20]])","v":0},{"$f":"IFERROR(IF(COUNT(dbTest[[#This Row],[1]:[20]])>1,AVERAGE(dbTest[[#This Row],[1]:[20]]),\"\"),\"\")","v":""},{"$f":"MAX(dbTest[[#This Row],[1]:[20]])","v":0},{"$f":"IFERROR(IF(dbTest[[#This Row],[СрБалл]]=\"\",\"\",0.25*(dbTest[[#This Row],[МинБалл]]+dbTest[[#This Row],[МаксБалл]])+0.5*dbTest[[#This Row],[СрБалл]]),\"\")","v":""}]
[null,20,37,0,"Я придаю большое значение обустройству своего рабочего места.","II. Мотивация труда и психологическое состояние работника","1. Гигиенические факторы","Обустройство рабочего места","Да, безусловно","Скорее да, чем нет","Скорее нет, чем да","Нет",100,75,25,0,{"$f":"MIN(dbTest[[#This Row],[1]:[20]])","v":0},{"$f":"IFERROR(IF(COUNT(dbTest[[#This Row],[1]:[20]])>1,AVERAGE(dbTest[[#This Row],[1]:[20]]),\"\"),\"\")","v":""},{"$f":"MAX(dbTest[[#This Row],[1]:[20]])","v":0},{"$f":"IFERROR(IF(dbTest[[#This Row],[СрБалл]]=\"\",\"\",0.25*(dbTest[[#This Row],[МинБалл]]+dbTest[[#This Row],[МаксБалл]])+0.5*dbTest[[#This Row],[СрБалл]]),\"\")","v":""}]
[null,21,2,0,"Хорошо оборудованное рабочее место, наличие телефона и компьютера на столе повышает статус сотрудника в глазах окружающих.","II. Мотивация труда и психологическое состояние работника","1. Гигиенические факторы","Обустройство рабочего места","Да","Скорее да, чем нет","Скорее нет, чем да","Нет",100,75,25,0,{"$f":"MIN(dbTest[[#This Row],[1]:[20]])","v":0},{"$f":"IFERROR(IF(COUNT(dbTest[[#This Row],[1]:[20]])>1,AVERAGE(dbTest[[#This Row],[1]:[20]]),\"\"),\"\")","v":""},{"$f":"MAX(dbTest[[#This Row],[1]:[20]])","v":0},{"$f":"IFERROR(IF(dbTest[[#This Row],[СрБалл]]=\"\",\"\",0.25*(dbTest[[#This Row],[МинБалл]]+dbTest[[#This Row],[МаксБалл]])+0.5*dbTest[[#This Row],[СрБалл]]),\"\")","v":""}]
[null,22,35,6,"Я удовлетворен(а) длительностью рабочего дня.","II. Мотивация труда и психологическое состояние работника","1. Гигиенические факторы","Физические условия труда","Да","Скорее да, чем нет","Скорее нет, чем да","Нет",100,75,25,0,{"$f":"MIN(dbTest[[#This Row],[1]:[20]])","v":0},{"$f":"IFERROR(IF(COUNT(dbTest[[#This Row],[1]:[20]])>1,AVERAGE(dbTest[[#This Row],[1]:[20]]),\"\"),\"\")","v":""},{"$f":"MAX(dbTest[[#This Row],[1]:[20]])","v":0},{"$f":"IFERROR(IF(dbTest[[#This Row],[СрБалл]]=\"\",\"\",0.25*(dbTest[[#This Row],[МинБалл]]+dbTest[[#This Row],[МаксБалл]])+0.5*dbTest[[#This Row],[СрБалл]]),\"\")","v":""}]
[null,23,22,7,"Мое рабочее место хорошо оборудовано.","II. Мотивация труда и психологическое состояние работника","1. Гигиенические факторы","Обустройство рабочего места","Да","Скорее да, чем нет","Скорее нет, чем да","Нет",100,75,25,0,{"$f":"MIN(dbTest[[#This Row],[1]:[20]])","v":0},{"$f":"IFERROR(IF(COUNT(dbTest[[#This Row],[1]:[20]])>1,AVERAGE(dbTest[[#This Row],[1]:[20]]),\"\"),\"\")","v":""},{"$f":"MAX(dbTest[[#This Row],[1]:[20]])","v":0},{"$f":"IFERROR(IF(dbTest[[#This Row],[СрБалл]]=\"\",\"\",0.25*(dbTest[[#This Row],[МинБалл]]+dbTest[[#This Row],[МаксБалл]])+0.5*dbTest[[#This Row],[СрБалл]]),\"\")","v":""}]
[null,24,49,8,"Я считаю, что за такой объем выполняемой работы мне должны платить гораздо больше.","II. Мотивация труда и психологическое состояние работника","1. Гигиенические факторы","Зарплата","Да","Скорее да, чем нет","Скорее нет, чем да","Нет",0,25,75,100,{"$f":"MIN(dbTest[[#This Row],[1]:[20]])","v":0},{"$f":"IFERROR(IF(COUNT(dbTest[[#This Row],[1]:[20]])>1,AVERAGE(dbTest[[#This Row],[1]:[20]]),\"\"),\"\")","v":""},{"$f":"MAX(dbTest[[#This Row],[1]:[20]])","v":0},{"$f":"IFERROR(IF(dbTest[[#This Row],[СрБалл]]=\"\",\"\",0.25*(dbTest[[#This Row],[МинБалл]]+dbTest[[#This Row],[МаксБалл]])+0.5*dbTest[[#This Row],[СрБалл]]),\"\")","v":""}]
[null,25,7,8,"Я точно знаю, каким образом осуществляется начисление мне заработной платы.","II. Мотивация труда и психологическое состояние работника","1. Гигиенические факторы","Зарплата","Да","Скорее да, чем нет","Скорее нет, чем да","Нет",100,75,25,0,{"$f":"MIN(dbTest[[#This Row],[1]:[20]])","v":0},{"$f":"IFERROR(IF(COUNT(dbTest[[#This Row],[1]:[20]])>1,AVERAGE(dbTest[[#This Row],[1]:[20]]),\"\"),\"\")","v":""},{"$f":"MAX(dbTest[[#This Row],[1]:[20]])","v":0},{"$f":"IFERROR(IF(dbTest[[#This Row],[СрБалл]]=\"\",\"\",0.25*(dbTest[[#This Row],[МинБалл]]+dbTest[[#This Row],[МаксБалл]])+0.5*dbTest[[#This Row],[СрБалл]]),\"\")","v":""}]
[null,26,34,8,"Я считаю, что существующие в нашей организации принципы оплаты труда в целом являются справедливыми.","II. Мотивация труда и психологическое состояние работника","1. Гигиенические факторы","Зарплата","Да, безусловно","Скорее да, чем нет","Скорее нет, чем да","Нет",100,75,25,0,{"$f":"MIN(dbTest[[#This Row],[1]:[20]])","v":0},{"$f":"IFERROR(IF(COUNT(dbTest[[#This Row],[1]:[20]])>1,AVERAGE(dbTest[[#This Row],[1]:[20]]),\"\"),\"\")","v":""},{"$f":"MAX(dbTest[[#This Row],[1]:[20]])","v":0},{"$f":"IFERROR(IF(dbTest[[#This Row],[СрБалл]]=\"\",\"\",0.25*(dbTest[[#This Row],[МинБалл]]+dbTest[[#This Row],[МаксБалл]])+0.5*dbTest[[#This Row],[СрБалл]]),\"\")","v":""}]
[null,27,24,8,"Я удовлетворен(а) заработной платой в сравнении с тем, что за такую же работу платят в других организациях.","II. Мотивация труда и психологическое состояние работника","1. Гигиенические факторы","Зарплата","Да","Скорее да, чем нет","Скорее нет, чем да","Нет",100,75,25,0,{"$f":"MIN(dbTest[[#This Row],[1]:[20]])","v":0},{"$f":"IFERROR(IF(COUNT(dbTest[[#This Row],[1]:[20]])>1,AVERAGE(dbTest[[#This Row],[1]:[20]]),\"\"),\"\")","v":""},{"$f":"MAX(dbTest[[#This Row],[1]:[20]])","v":0},{"$f":"IFERROR(IF(dbTest[[#This Row],[СрБалл]]=\"\",\"\",0.25*(dbTest[[#This Row],[МинБалл]]+dbTest[[#This Row],[МаксБалл]])+0.5*dbTest[[#This Row],[СрБалл]]),\"\")","v":""}]
[null,28,23,9,"Я уверен, что если работать лучше, то всегда можно ожидать соответствующего вознаграждения.","II. Мотивация труда и психологическое состояние работника","1. Гигиенические факторы","Ожидание справедливого вознаграждения","Да, безусловно","Скорее да, чем нет","Скорее нет, чем да","Нет",100,75,25,0,{"$f":"MIN(dbTest[[#This Row],[1]:[20]])","v":0},{"$f":"IFERROR(IF(COUNT(dbTest[[#This Row],[1]:[20]])>1,AVERAGE(dbTest[[#This Row],[1]:[20]]),\"\"),\"\")","v":""},{"$f":"MAX(dbTest[[#This Row],[1]:[20]])","v":0},{"$f":"IFERROR(IF(dbTest[[#This Row],[СрБалл]]=\"\",\"\",0.25*(dbTest[[#This Row],[МинБалл]]+dbTest[[#This Row],[МаксБалл]])+0.5*dbTest[[#This Row],[СрБалл]]),\"\")","v":""}]
[null,29,18,10,"Я считаю, что в нашем коллективе недостаточно развиты взаимопомощь и взаимное доверие.","II. Мотивация труда и психологическое состояние работника","1. Гигиенические факторы","Взаимоотношения в коллективе","Да","Скорее да, чем нет","Скорее нет, чем да","Нет",0,25,75,100,{"$f":"MIN(dbTest[[#This Row],[1]:[20]])","v":0},{"$f":"IFERROR(IF(COUNT(dbTest[[#This Row],[1]:[20]])>1,AVERAGE(dbTest[[#This Row],[1]:[20]]),\"\"),\"\")","v":""},{"$f":"MAX(dbTest[[#This Row],[1]:[20]])","v":0},{"$f":"IFERROR(IF(dbTest[[#This Row],[СрБалл]]=\"\",\"\",0.25*(dbTest[[#This Row],[МинБалл]]+dbTest[[#This Row],[МаксБалл]])+0.5*dbTest[[#This Row],[СрБалл]]),\"\")","v":""}]
[null,30,42,10,"В нашем трудовом коллективе возникают конфликты.","II. Мотивация труда и психологическое состояние работника","1. Гигиенические факторы","Взаимоотношения в коллективе","Да, очень часто","Часто","Иногда","Практически никогда",0,25,75,100,{"$f":"MIN(dbTest[[#This Row],[1]:[20]])","v":0},{"$f":"IFERROR(IF(COUNT(dbTest[[#This Row],[1]:[20]])>1,AVERAGE(dbTest[[#This Row],[1]:[20]]),\"\"),\"\")","v":""},{"$f":"MAX(dbTest[[#This Row],[1]:[20]])","v":0},{"$f":"IFERROR(IF(dbTest[[#This Row],[СрБалл]]=\"\",\"\",0.25*(dbTest[[#This Row],[МинБалл]]+dbTest[[#This Row],[МаксБалл]])+0.5*dbTest[[#This Row],[СрБалл]]),\"\")","v":""}]
[null,31,39,11,"Я думаю, что при решении каких-либо проблем, возникающих в процессе работы, мне будет сложно спорить со своим начальником, даже если я вполне уверен (уверена) в своей правоте.","II. Мотивация труда и психологическое состояние работника","1. Гигиенические факторы","Взаимоотношения с непосредственным начальником","Да, безусловно","Скорее да, чем нет","Скорее нет, чем да","Нет",0,25,75,100,{"$f":"MIN(dbTest[[#This Row],[1]:[20]])","v":0},{"$f":"IFERROR(IF(COUNT(dbTest[[#This Row],[1]:[20]])>1,AVERAGE(dbTest[[#This Row],[1]:[20]]),\"\"),\"\")","v":""},{"$f":"MAX(dbTest[[#This Row],[1]:[20]])","v":0},{"$f":"IFERROR(IF(dbTest[[#This Row],[СрБалл]]=\"\",\"\",0.25*(dbTest[[#This Row],[МинБалл]]+dbTest[[#This Row],[МаксБалл]])+0.5*dbTest[[#This Row],[СрБалл]]),\"\")","v":""}]
[null,32,13,11,"Я не считаю возможным делиться со своим начальником личными проблемами, даже если они в определенной степени мешают мне качественно выполнять порученную работу.","II. Мотивация труда и психологическое состояние работника","1. Гигиенические факторы","Взаимоотношения с непосредственным начальником","Да, безусловно","Скорее да, чем нет","Скорее нет, чем да","Нет",0,25,75,100,{"$f":"MIN(dbTest[[#This Row],[1]:[20]])","v":0},{"$f":"IFERROR(IF(COUNT(dbTest[[#This Row],[1]:[20]])>1,AVERAGE(dbTest[[#This Row],[1]:[20]]),\"\"),\"\")","v":""},{"$f":"MAX(dbTest[[#This Row],[1]:[20]])","v":0},{"$f":"IFERROR(IF(dbTest[[#This Row],[СрБалл]]=\"\",\"\",0.25*(dbTest[[#This Row],[МинБалл]]+dbTest[[#This Row],[МаксБалл]])+0.5*dbTest[[#This Row],[СрБалл]]),\"\")","v":""}]
[null,33,41,11,"Я удовлетворен(а) стилем руководства своего начальника.","II. Мотивация труда и психологическое состояние работника","1. Гигиенические факторы","Взаимоотношения с непосредственным начальником","Да","Скорее да, чем нет","Скорее нет, чем да","Нет",100,75,25,0,{"$f":"MIN(dbTest[[#This Row],[1]:[20]])","v":0},{"$f":"IFERROR(IF(COUNT(dbTest[[#This Row],[1]:[20]])>1,AVERAGE(dbTest[[#This Row],[1]:[20]]),\"\"),\"\")","v":""},{"$f":"MAX(dbTest[[#This Row],[1]:[20]])","v":0},{"$f":"IFERROR(IF(dbTest[[#This Row],[СрБалл]]=\"\",\"\",0.25*(dbTest[[#This Row],[МинБалл]]+dbTest[[#This Row],[МаксБалл]])+0.5*dbTest[[#This Row],[СрБалл]]),\"\")","v":""}]
[null,34,51,11,"Я удовлетворен(а) профессиональной компетенцией своего начальника.","II. Мотивация труда и психологическое состояние работника","1. Гигиенические факторы","Взаимоотношения с непосредственным начальником","Да","Скорее да, чем нет","Скорее нет, чем да","Нет",100,75,25,0,{"$f":"MIN(dbTest[[#This Row],[1]:[20]])","v":0},{"$f":"IFERROR(IF(COUNT(dbTest[[#This Row],[1]:[20]])>1,AVERAGE(dbTest[[#This Row],[1]:[20]]),\"\"),\"\")","v":""},{"$f":"MAX(dbTest[[#This Row],[1]:[20]])","v":0},{"$f":"IFERROR(IF(dbTest[[#This Row],[СрБалл]]=\"\",\"\",0.25*(dbTest[[#This Row],[МинБалл]]+dbTest[[#This Row],[МаксБалл]])+0.5*dbTest[[#This Row],[СрБалл]]),\"\")","v":""}]
[null,35,12,12,"Я считаю, что в нашей организации инициатива подчиненных обычно не воспринимается и не поощряется руководителями различных рангов.","II. Мотивация труда и психологическое состояние работника","2. Стимулирующие факторы","Поощрение начальником инициативы и самостоятельности подчиненных","Да","Скорее да, чем нет","Скорее нет, чем да","Нет",0,25,75,100,{"$f":"MIN(dbTest[[#This Row],[1]:[20]])","v":0},{"$f":"IFERROR(IF(COUNT(dbTest[[#This Row],[1]:[20]])>1,AVERAGE(dbTest[[#This Row],[1]:[20]]),\"\"),\"\")","v":""},{"$f":"MAX(dbTest[[#This Row],[1]:[20]])","v":0},{"$f":"IFERROR(IF(dbTest[[#This Row],[СрБалл]]=\"\",\"\",0.25*(dbTest[[#This Row],[МинБалл]]+dbTest[[#This Row],[МаксБалл]])+0.5*dbTest[[#This Row],[СрБалл]]),\"\")","v":""}]
[null,36,9,12,"Мой начальник всегда способствует тому, чтобы его подчиненные работали самостоятельно.","II. Мотивация труда и психологическое состояние работника","2. Стимулирующие факторы","Поощрение начальником инициативы и самостоятельности подчиненных","Да","Скорее да, чем нет","Скорее нет, чем да","Нет",100,75,25,0,{"$f":"MIN(dbTest[[#This Row],[1]:[20]])","v":0},{"$f":"IFERROR(IF(COUNT(dbTest[[#This Row],[1]:[20]])>1,AVERAGE(dbTest[[#This Row],[1]:[20]]),\"\"),\"\")","v":""},{"$f":"MAX(dbTest[[#This Row],[1]:[20]])","v":0},{"$f":"IFERROR(IF(dbTest[[#This Row],[СрБалл]]=\"\",\"\",0.25*(dbTest[[#This Row],[МинБалл]]+dbTest[[#This Row],[МаксБалл]])+0.5*dbTest[[#This Row],[СрБалл]]),\"\")","v":""}]
[null,37,47,13,"Я считаю, что мои знания, опыт и способности соответствуют требованиям, предъявляемым к должности, которую я занимаю.","II. Мотивация труда и психологическое состояние работника","2. Стимулирующие факторы","Соответствие «человек - должность», интерес к работе","Да, вполне","Нет, я способен выполнять более сложные и ответственные задачи","Нет, иногда я чувствую, что такой объем должностных обязанностей мне выполнять достаточно сложно.","Нет, я постоянно чувствую, что не справляюсь со своими должностными обязанностями.",100,50,25,0,{"$f":"MIN(dbTest[[#This Row],[1]:[20]])","v":0},{"$f":"IFERROR(IF(COUNT(dbTest[[#This Row],[1]:[20]])>1,AVERAGE(dbTest[[#This Row],[1]:[20]]),\"\"),\"\")","v":""},{"$f":"MAX(dbTest[[#This Row],[1]:[20]])","v":0},{"$f":"IFERROR(IF(dbTest[[#This Row],[СрБалл]]=\"\",\"\",0.25*(dbTest[[#This Row],[МинБалл]]+dbTest[[#This Row],[МаксБалл]])+0.5*dbTest[[#This Row],[СрБалл]]),\"\")","v":""}]
[null,38,20,13,"Я всегда предпочитаю выполнять более сложную, но и более интересную работу.","II. Мотивация труда и психологическое состояние работника","2. Стимулирующие факторы","Соответствие «человек - должность», интерес к работе","Да","Скорее да, чем нет","Скорее нет, чем да","Нет",100,75,25,0,{"$f":"MIN(dbTest[[#This Row],[1]:[20]])","v":0},{"$f":"IFERROR(IF(COUNT(dbTest[[#This Row],[1]:[20]])>1,AVERAGE(dbTest[[#This Row],[1]:[20]]),\"\"),\"\")","v":""},{"$f":"MAX(dbTest[[#This Row],[1]:[20]])","v":0},{"$f":"IFERROR(IF(dbTest[[#This Row],[СрБалл]]=\"\",\"\",0.25*(dbTest[[#This Row],[МинБалл]]+dbTest[[#This Row],[МаксБалл]])+0.5*dbTest[[#This Row],[СрБалл]]),\"\")","v":""}]
[null,39,46,13,"Мне бывает не интересно выполнять работу, которую мне поручают.","II. Мотивация труда и психологическое состояние работника","2. Стимулирующие факторы","Соответствие «человек - должность», интерес к работе","Да, очень часто","Часто","Иногда","Никогда",0,25,75,100,{"$f":"MIN(dbTest[[#This Row],[1]:[20]])","v":0},{"$f":"IFERROR(IF(COUNT(dbTest[[#This Row],[1]:[20]])>1,AVERAGE(dbTest[[#This Row],[1]:[20]]),\"\"),\"\")","v":""},{"$f":"MAX(dbTest[[#This Row],[1]:[20]])","v":0},{"$f":"IFERROR(IF(dbTest[[#This Row],[СрБалл]]=\"\",\"\",0.25*(dbTest[[#This Row],[МинБалл]]+dbTest[[#This Row],[МаксБалл]])+0.5*dbTest[[#This Row],[СрБалл]]),\"\")","v":""}]
[null,40,25,14,"Я считаю, что должность, которую я занимаю, позволяет мне полностью реализовать свои способности.","II. Мотивация труда и психологическое состояние работника","2. Стимулирующие факторы","Возможность самореализации и продвижения по службе","Да, безусловно","Скорее да, чем нет","Скорее нет, чем да","Нет",100,75,25,0,{"$f":"MIN(dbTest[[#This Row],[1]:[20]])","v":0},{"$f":"IFERROR(IF(COUNT(dbTest[[#This Row],[1]:[20]])>1,AVERAGE(dbTest[[#This Row],[1]:[20]]),\"\"),\"\")","v":""},{"$f":"MAX(dbTest[[#This Row],[1]:[20]])","v":0},{"$f":"IFERROR(IF(dbTest[[#This Row],[СрБалл]]=\"\",\"\",0.25*(dbTest[[#This Row],[МинБалл]]+dbTest[[#This Row],[МаксБалл]])+0.5*dbTest[[#This Row],[СрБалл]]),\"\")","v":""}]
[null,41,44,14,"Если постараться, то в нашей организации у меня есть возможность продвигаться по службе.","II. Мотивация труда и психологическое состояние работника","2. Стимулирующие факторы","Возможность самореализации и продвижения по службе","Да, безусловно","Скорее да, чем нет","Скорее нет, чем да","Нет",100,75,25,0,{"$f":"MIN(dbTest[[#This Row],[1]:[20]])","v":0},{"$f":"IFERROR(IF(COUNT(dbTest[[#This Row],[1]:[20]])>1,AVERAGE(dbTest[[#This Row],[1]:[20]]),\"\"),\"\")","v":""},{"$f":"MAX(dbTest[[#This Row],[1]:[20]])","v":0},{"$f":"IFERROR(IF(dbTest[[#This Row],[СрБалл]]=\"\",\"\",0.25*(dbTest[[#This Row],[МинБалл]]+dbTest[[#This Row],[МаксБалл]])+0.5*dbTest[[#This Row],[СрБалл]]),\"\")","v":""}]
[null,42,29,14,"Я удовлетворен(а) своим служебным (профессиональным) продвижением.","II. Мотивация труда и психологическое состояние работника","2. Стимулирующие факторы","Возможность самореализации и продвижения по службе","Да","Скорее да, чем нет","Скорее нет, чем да","Нет",100,75,25,0,{"$f":"MIN(dbTest[[#This Row],[1]:[20]])","v":0},{"$f":"IFERROR(IF(COUNT(dbTest[[#This Row],[1]:[20]])>1,AVERAGE(dbTest[[#This Row],[1]:[20]]),\"\"),\"\")","v":""},{"$f":"MAX(dbTest[[#This Row],[1]:[20]])","v":0},{"$f":"IFERROR(IF(dbTest[[#This Row],[СрБалл]]=\"\",\"\",0.25*(dbTest[[#This Row],[МинБалл]]+dbTest[[#This Row],[МаксБалл]])+0.5*dbTest[[#This Row],[СрБалл]]),\"\")","v":""}]
[null,43,27,14,"Я удовлетворен(а) тем, что на своей работе я могу использовать свой опыт и способности.","II. Мотивация труда и психологическое состояние работника","2. Стимулирующие факторы","Возможность самореализации и продвижения по службе","Да","Скорее да, чем нет","Скорее нет, чем да","Нет",100,75,25,0,{"$f":"MIN(dbTest[[#This Row],[1]:[20]])","v":0},{"$f":"IFERROR(IF(COUNT(dbTest[[#This Row],[1]:[20]])>1,AVERAGE(dbTest[[#This Row],[1]:[20]]),\"\"),\"\")","v":""},{"$f":"MAX(dbTest[[#This Row],[1]:[20]])","v":0},{"$f":"IFERROR(IF(dbTest[[#This Row],[СрБалл]]=\"\",\"\",0.25*(dbTest[[#This Row],[МинБалл]]+dbTest[[#This Row],[МаксБалл]])+0.5*dbTest[[#This Row],[СрБалл]]),\"\")","v":""}]
[null,44,32,14,"Я удовлетворен(а) требованиями моей работы к интеллекту человека.","II. Мотивация труда и психологическое состояние работника","2. Стимулирующие факторы","Возможность самореализации и продвижения по службе","Да","Скорее да, чем нет","Скорее нет, чем да","Нет",100,75,25,0,{"$f":"MIN(dbTest[[#This Row],[1]:[20]])","v":0},{"$f":"IFERROR(IF(COUNT(dbTest[[#This Row],[1]:[20]])>1,AVERAGE(dbTest[[#This Row],[1]:[20]]),\"\"),\"\")","v":""},{"$f":"MAX(dbTest[[#This Row],[1]:[20]])","v":0},{"$f":"IFERROR(IF(dbTest[[#This Row],[СрБалл]]=\"\",\"\",0.25*(dbTest[[#This Row],[МинБалл]]+dbTest[[#This Row],[МаксБалл]])+0.5*dbTest[[#This Row],[СрБалл]]),\"\")","v":""}]
[null,45,48,15,"Мой начальник активно привлекает подчиненных к управлению, способствуя коллективному решению возникающих в процессе работы проблем.","II. Мотивация труда и психологическое состояние работника","2. Стимулирующие факторы","Участие в управлении","Да","Скорее да, чем нет","Скорее нет, чем да","Нет",100,75,25,0,{"$f":"MIN(dbTest[[#This Row],[1]:[20]])","v":0},{"$f":"IFERROR(IF(COUNT(dbTest[[#This Row],[1]:[20]])>1,AVERAGE(dbTest[[#This Row],[1]:[20]]),\"\"),\"\")","v":""},{"$f":"MAX(dbTest[[#This Row],[1]:[20]])","v":0},{"$f":"IFERROR(IF(dbTest[[#This Row],[СрБалл]]=\"\",\"\",0.25*(dbTest[[#This Row],[МинБалл]]+dbTest[[#This Row],[МаксБалл]])+0.5*dbTest[[#This Row],[СрБалл]]),\"\")","v":""}]
[null,46,36,16,"Я плохо представляю себе, как в целом воспринимается и оценивается моя трудовая деятельность руководством организации.","II. Мотивация труда и психологическое состояние работника","3. Психологическое состояние работника","-","Да","Скорее да, чем нет","Скорее нет, чем да","Нет",0,25,75,100,{"$f":"MIN(dbTest[[#This Row],[1]:[20]])","v":0},{"$f":"IFERROR(IF(COUNT(dbTest[[#This Row],[1]:[20]])>1,AVERAGE(dbTest[[#This Row],[1]:[20]]),\"\"),\"\")","v":""},{"$f":"MAX(dbTest[[#This Row],[1]:[20]])","v":0},{"$f":"IFERROR(IF(dbTest[[#This Row],[СрБалл]]=\"\",\"\",0.25*(dbTest[[#This Row],[МинБалл]]+dbTest[[#This Row],[МаксБалл]])+0.5*dbTest[[#This Row],[СрБалл]]),\"\")","v":""}]
[null,47,28,16,"Бывает, мне кажется, что рабочий день длится бесконечно долго.","II. Мотивация труда и психологическое состояние работника","3. Психологическое состояние работника","-","Да, очень часто","Часто","Иногда","Никогда",0,25,75,100,{"$f":"MIN(dbTest[[#This Row],[1]:[20]])","v":0},{"$f":"IFERROR(IF(COUNT(dbTest[[#This Row],[1]:[20]])>1,AVERAGE(dbTest[[#This Row],[1]:[20]]),\"\"),\"\")","v":""},{"$f":"MAX(dbTest[[#This Row],[1]:[20]])","v":0},{"$f":"IFERROR(IF(dbTest[[#This Row],[СрБалл]]=\"\",\"\",0.25*(dbTest[[#This Row],[МинБалл]]+dbTest[[#This Row],[МаксБалл]])+0.5*dbTest[[#This Row],[СрБалл]]),\"\")","v":""}]
[null,48,14,16,"Случается, что у меня возникает непреодолимое желание уволиться с работы.","II. Мотивация труда и психологическое состояние работника","3. Психологическое состояние работника","-","Да, очень часто","Часто","Иногда","Никогда",0,25,50,100,{"$f":"MIN(dbTest[[#This Row],[1]:[20]])","v":0},{"$f":"IFERROR(IF(COUNT(dbTest[[#This Row],[1]:[20]])>1,AVERAGE(dbTest[[#This Row],[1]:[20]]),\"\"),\"\")","v":""},{"$f":"MAX(dbTest[[#This Row],[1]:[20]])","v":0},{"$f":"IFERROR(IF(dbTest[[#This Row],[СрБалл]]=\"\",\"\",0.25*(dbTest[[#This Row],[МинБалл]]+dbTest[[#This Row],[МаксБалл]])+0.5*dbTest[[#This Row],[СрБалл]]),\"\")","v":""}]
[null,49,8,16,"Случается, что в отсутствии начальника эффективность работы в подразделении повышается.","II. Мотивация труда и психологическое состояние работника","3. Психологическое состояние работника","-","Да, очень часто","Часто","Иногда","Никогда",0,25,75,100,{"$f":"MIN(dbTest[[#This Row],[1]:[20]])","v":0},{"$f":"IFERROR(IF(COUNT(dbTest[[#This Row],[1]:[20]])>1,AVERAGE(dbTest[[#This Row],[1]:[20]]),\"\"),\"\")","v":""},{"$f":"MAX(dbTest[[#This Row],[1]:[20]])","v":0},{"$f":"IFERROR(IF(dbTest[[#This Row],[СрБалл]]=\"\",\"\",0.25*(dbTest[[#This Row],[МинБалл]]+dbTest[[#This Row],[МаксБалл]])+0.5*dbTest[[#This Row],[СрБалл]]),\"\")","v":""}]
[null,50,10,16,"В присутствии начальства я всегда работаю, испытывая внутреннее напряжение.","II. Мотивация труда и психологическое состояние работника","3. Психологическое состояние работника","-","Да","Скорее да, чем нет","Скорее нет, чем да","Нет",0,25,75,100,{"$f":"MIN(dbTest[[#This Row],[1]:[20]])","v":0},{"$f":"IFERROR(IF(COUNT(dbTest[[#This Row],[1]:[20]])>1,AVERAGE(dbTest[[#This Row],[1]:[20]]),\"\"),\"\")","v":""},{"$f":"MAX(dbTest[[#This Row],[1]:[20]])","v":0},{"$f":"IFERROR(IF(dbTest[[#This Row],[СрБалл]]=\"\",\"\",0.25*(dbTest[[#This Row],[МинБалл]]+dbTest[[#This Row],[МаксБалл]])+0.5*dbTest[[#This Row],[СрБалл]]),\"\")","v":""}]
[null,51,38,16,"Я удовлетворен(а) организацией, в которой работаю.","II. Мотивация труда и психологическое состояние работника","3. Психологическое состояние работника","-","Да","Скорее да, чем нет","Скорее нет, чем да","Нет",100,75,25,0,{"$f":"MIN(dbTest[[#This Row],[1]:[20]])","v":0},{"$f":"IFERROR(IF(COUNT(dbTest[[#This Row],[1]:[20]])>1,AVERAGE(dbTest[[#This Row],[1]:[20]]),\"\"),\"\")","v":""},{"$f":"MAX(dbTest[[#This Row],[1]:[20]])","v":0},{"$f":"IFERROR(IF(dbTest[[#This Row],[СрБалл]]=\"\",\"\",0.25*(dbTest[[#This Row],[МинБалл]]+dbTest[[#This Row],[МаксБалл]])+0.5*dbTest[[#This Row],[СрБалл]]),\"\")","v":""}]
[null,52,52,16,"Я хотел(а) бы проработать в нашей организации еще много лет.","II. Мотивация труда и психологическое состояние работника","3. Психологическое состояние работника","-","Да","Скорее да, чем нет","Скорее нет, чем да","Нет",100,75,25,0,{"$f":"MIN(dbTest[[#This Row],[1]:[20]])","v":0},{"$f":"IFERROR(IF(COUNT(dbTest[[#This Row],[1]:[20]])>1,AVERAGE(dbTest[[#This Row],[1]:[20]]),\"\"),\"\")","v":""},{"$f":"MAX(dbTest[[#This Row],[1]:[20]])","v":0},{"$f":"IFERROR(IF(dbTest[[#This Row],[СрБалл]]=\"\",\"\",0.25*(dbTest[[#This Row],[МинБалл]]+dbTest[[#This Row],[МаксБалл]])+0.5*dbTest[[#This Row],[СрБалл]]),\"\")","v":""}]